bitfinex-derivatives/quotes_BTCF0:USTF0_20250905
["timestamp","ask_amount","ask_price","bid_price","bid_amount"]
[1757082064322,0.0896143,111570.0,111560.0,0.81641897]
[1757082064525,0.0896143,111570.0,111560.0,1.95441897]
[1757082064720,0.0896143,111570.0,111560.0,2.04404137]
[1757082064921,0.0896143,111570.0,111560.0,1.95441897]
[1757082065123,0.0896143,111570.0,111560.0,1.95373897]
[1757082065429,0.089631,111550.0,111540.0,0.01805916]
[1757082065635,0.089631,111550.0,111540.0,1.55709813]
[1757082065832,0.089631,111550.0,111540.0,1.91789813]
[1757082066144,0.089726,111560.0,111540.0,2.25753303]
[1757082066435,0.0001,111560.0,111550.0,1.36166884]
[1757082066625,0.0896229,111560.0,111550.0,0.81641897]
[1757082066826,0.0896309,111550.0,111540.0,0.44995961]
[1757082067022,0.0896309,111550.0,111540.0,2.13105758]
[1757082067234,0.0896309,111550.0,111540.0,0.37875916]
[1757082067438,1.15604987,111550.0,111540.0,0.01795916]
[1757082067626,0.03486,111540.0,111520.0,0.3609]
[1757082067827,0.39566,111540.0,111510.0,1.97034123]
[1757082068025,0.39566,111540.0,111510.0,1.51472226]
[1757082068230,0.3608,111540.0,111520.0,0.4504504]
[1757082068429,0.3608,111550.0,111530.0,1.13504]
[1757082068631,0.03486,111540.0,111530.0,1.49584]
[1757082068937,0.39576,111560.0,111530.0,1.95145897]
[1757082069230,0.03496,111560.0,111530.0,1.5854833]
[1757082069427,0.39576,111560.0,111530.0,1.49584]
[1757082069632,0.39566,111540.0,111530.0,1.59065897]
[1757082069836,0.03486,111540.0,111530.0,0.45561897]
[1757082070033,0.64566,111540.0,111510.0,0.37870226]
[1757082070329,0.03486,111520.0,111510.0,0.01780226]
[1757082071435,0.03486,111520.0,111500.0,0.81641897]
[1757082071630,0.03496,111520.0,111500.0,0.81651897]
[1757082071829,0.03496,111520.0,111510.0,1.96137897]
[1757082072035,0.0001,111530.0,111510.0,1.96147897]
[1757082072229,0.0001,111530.0,111510.0,1.50586]
[1757082072425,0.03486,111520.0,111510.0,1.14498]
[1757082073036,0.03486,111520.0,111510.0,1.60059897]
[1757082073531,0.03486,111520.0,111510.0,1.95931897]
[1757082073828,0.03486,111520.0,111510.0,0.0001]
[1757082074029,0.39566,111520.0,111510.0,0.0001]
[1757082074225,0.64566,111520.0,111510.0,0.0001]
[1757082074430,1.10127897,111520.0,111510.0,0.0001]
[1757082074630,0.64566,111520.0,111510.0,0.0001]
[1757082074827,0.39566,111520.0,111510.0,0.0001]
[1757082075134,0.64566,111520.0,111510.0,0.0001]
[1757082075331,0.39566,111520.0,111510.0,0.0001]
[1757082075630,0.03486,111520.0,111510.0,0.0001]
[1757082075941,0.85127897,111520.0,111510.0,0.0001]
[1757082076246,0.1238111,111500.0,111490.0,0.0001]
[1757082076433,0.03414,111500.0,111490.0,0.0896791]
[1757082076737,0.4846111,111500.0,111490.0,0.00448]
[1757082076925,0.94023007,111500.0,111490.0,0.00448]
[1757082077127,1.19023007,111500.0,111490.0,0.00448]
[1757082077925,0.7346111,111500.0,111490.0,0.00448]
[1757082078330,0.94023007,111500.0,111490.0,0.00448]
[1757082078531,0.1238111,111500.0,111490.0,0.00448]
[1757082078738,0.1238111,111500.0,111490.0,0.46009897]
[1757082078935,0.1238111,111500.0,111490.0,0.82089897]
[1757082079126,0.04621327,111510.0,111490.0,0.61528]
[1757082079336,0.04621327,111510.0,111500.0,0.90608987]
[1757082079537,0.04621327,111510.0,111500.0,2.20145897]
[1757082079841,0.13587607,111510.0,111500.0,0.81641897]
[1757082080240,0.0896704,111500.0,111490.0,0.89260405]
[1757082080440,0.0896704,111500.0,111490.0,1.95613897]
[1757082080640,0.1238104,111500.0,111490.0,1.4992]
[1757082080840,0.1238104,111500.0,111490.0,1.1384]
[1757082081229,0.7346104,111500.0,111490.0,0.00448]
[1757082081441,0.1238104,111500.0,111490.0,0.36528]
[1757082081944,0.1238104,111500.0,111490.0,1.95433897]
[1757082082430,0.13587777,111510.0,111490.0,2.29401557]
[1757082082630,0.13587777,111510.0,111500.0,0.90608757]
[1757082082631,0.04621327,111510.0,111500.0,0.90608757]
[1757082082843,0.04621327,111510.0,111500.0,2.03820757]
[1757082083039,0.04621327,111510.0,111500.0,2.28820757]
[1757082083339,0.13587377,111510.0,111500.0,1.94785897]
[1757082083538,0.13587377,111510.0,111500.0,1.94761897]
[1757082083737,0.13587377,111510.0,111500.0,1.49184]
[1757082083939,0.13587377,111510.0,111500.0,0.81641897]
[1757082084141,0.13587377,111510.0,111500.0,0.3608]
[1757082084441,0.04621327,111510.0,111500.0,1.06641897]
[1757082084640,0.04621327,111510.0,111500.0,2.05800937]
[1757082084843,0.13587567,111510.0,111500.0,1.96833897]
[1757082085044,0.13587567,111510.0,111500.0,2.03580947]
[1757082085244,0.04621327,111510.0,111500.0,2.28580947]
[1757082085438,0.13587577,111510.0,111500.0,2.28580947]
[1757082085646,0.13587577,111510.0,111500.0,2.19609897]
[1757082085844,0.13587577,111510.0,111500.0,1.94505897]
[1757082086044,0.13587577,111510.0,111500.0,1.48908]
[1757082086245,0.13587577,111510.0,111500.0,0.3608]
[1757082086448,0.13587577,111510.0,111500.0,1.94469897]
[1757082086640,0.04621327,111510.0,111500.0,2.19469897]
[1757082086838,0.04621327,111510.0,111490.0,0.36528]
[1757082087045,0.03414,111500.0,111490.0,0.36528]
[1757082087239,0.03414,111500.0,111490.0,0.00448]
[1757082088654,0.03414,111500.0,111490.0,0.82089897]
[1757082089247,0.03414,111500.0,111490.0,0.00448]
[1757082089944,0.03414,111500.0,111490.0,0.46009897]
[1757082090146,0.03414,111500.0,111490.0,0.00448]
[1757082091549,0.03414,111500.0,111490.0,0.46009897]
[1757082091744,0.03414,111500.0,111490.0,0.82093897]
[1757082092043,0.04621327,111510.0,111490.0,1.23322639]
[1757082092250,0.04621327,111510.0,111500.0,1.93865897]
[1757082092747,0.04621327,111510.0,111500.0,2.02832947]
[1757082092945,0.04621327,111510.0,111500.0,2.27692947]
[1757082093148,0.02113209,111540.0,111510.0,0.0896627]
[1757082093449,0.02113209,111540.0,111530.0,1.17436406]
[1757082093848,0.02113209,111540.0,111530.0,1.51401066]
[1757082094248,0.0001,111560.0,111550.0,0.0896305]
[1757082094437,0.0001,111570.0,111560.0,0.0896225]
[1757082094642,0.0001,111570.0,111540.0,0.0001]
[1757082094643,0.03414,111560.0,111540.0,0.0001]
[1757082094938,0.3608,111550.0,111520.0,0.81366406]
[1757082095138,0.39494,111540.0,111530.0,0.0001]
[1757082095343,0.03414,111520.0,111510.0,0.00458]
[1757082095543,0.75574,111520.0,111510.0,0.00448]
[1757082095738,1.45850406,111520.0,111510.0,0.00448]
[1757082095943,0.03414,111500.0,111490.0,0.77842]
[1757082096242,0.39494,111500.0,111490.0,0.77832]
[1757082096649,0.75574,111500.0,111490.0,4e-05]
[1757082096845,1.45850406,111500.0,111490.0,4e-05]
[1757082097044,1.00574,111500.0,111470.0,0.0001]
[1757082097248,0.39494,111480.0,111460.0,1.13586117]
[1757082097445,0.39494,111480.0,111460.0,0.01800117]
[1757082097741,0.39494,111480.0,111460.0,1.13544117]
[1757082098346,0.3608,111490.0,111460.0,1.83820523]
[1757082098539,0.3608,111490.0,111460.0,1.58820523]
[1757082098744,0.3608,111480.0,111460.0,1.58820523]
[1757082099149,0.3608,111480.0,111460.0,0.01800117]
[1757082099150,0.39494,111480.0,111460.0,0.01800117]
[1757082099350,0.3608,111470.0,111460.0,0.01800117]
[1757082099843,0.39494,111480.0,111460.0,0.26800117]
[1757082100144,0.3608,111470.0,111460.0,0.01800117]
[1757082100348,0.39494,111480.0,111420.0,0.01055098]
[1757082100540,0.39494,111480.0,111340.0,0.11848716]
[1757082100541,0.03414,111420.0,111340.0,0.47457479]
[1757082100747,0.3608,111360.0,111340.0,0.49784423]
[1757082100950,0.3608,111360.0,111350.0,1.12152]
[1757082101147,0.7216,111360.0,111340.0,0.01784423]
[1757082101349,0.3608,111350.0,111340.0,0.01784423]
[1757082102046,0.3608,111350.0,111340.0,1.13764423]
[1757082102649,0.81356406,111350.0,111340.0,1.13768423]
[1757082102947,0.3608,111350.0,111340.0,0.01788423]
[1757082103150,0.3608,111350.0,111340.0,1.13604423]
[1757082103344,0.3608,111350.0,111340.0,1.38604423]
[1757082104451,0.3608,111360.0,111340.0,1.92860789]
[1757082104949,0.3608,111360.0,111340.0,1.83880829]
[1757082105154,0.3608,111360.0,111340.0,1.38604423]
[1757082105352,0.3608,111360.0,111340.0,1.92860549]
[1757082105553,0.3608,111350.0,111340.0,0.01788423]
[1757082105754,0.3608,111360.0,111340.0,1.22172383]
[1757082105956,0.3608,111360.0,111340.0,1.67448789]
[1757082106147,0.3608,111360.0,111340.0,1.22172383]
[1757082106346,0.3608,111350.0,111340.0,0.01788423]
[1757082106548,0.3608,111350.0,111340.0,1.38112423]
[1757082106848,0.3608,111360.0,111350.0,0.0897915]
[1757082107153,0.3608,111360.0,111350.0,0.54255556]
[1757082107453,0.3608,111360.0,111340.0,0.01788423]
[1757082107646,0.3608,111350.0,111340.0,0.01788423]
[1757082108147,1.06356406,111350.0,111340.0,1.13260423]
[1757082108351,0.3608,111350.0,111340.0,1.13260423]
[1757082108851,0.3608,111350.0,111340.0,1.11476]
[1757082110059,0.3608,111350.0,111340.0,1.90732366]
[1757082110252,0.3608,111360.0,111340.0,1.90732366]
[1757082110451,0.3608,111360.0,111340.0,1.65732366]
[1757082110949,0.3608,111360.0,111350.0,0.45276406]
[1757082111150,0.3963,111360.0,111350.0,1.11252]
[1757082111350,0.6463,111360.0,111340.0,4e-05]
[1757082111552,0.3608,111360.0,111350.0,1.56392406]
[1757082111759,0.3608,111360.0,111340.0,0.45280406]
[1757082112058,0.3608,111360.0,111350.0,1.1114]
[1757082112254,0.3608,111360.0,111350.0,1.65395556]
[1757082112458,0.3608,111370.0,111360.0,0.0897835]
[1757082112649,0.3608,111370.0,111360.0,0.54254756]
[1757082112849,0.3608,111370.0,111350.0,0.0897875]
[1757082113057,0.3608,111370.0,111360.0,0.0897835]
[1757082113253,0.3608,111370.0,111350.0,0.54255546]
[1757082113458,0.3608,111360.0,111340.0,4e-05]
[1757082113658,0.3608,111350.0,111340.0,4e-05]
[1757082113859,0.3608,111350.0,111340.0,1.56312406]
[1757082114055,0.0001,111360.0,111340.0,0.81527366]
[1757082114356,0.38150685,111380.0,111360.0,0.0897796]
[1757082114546,0.3608,111370.0,111360.0,0.54254366]
[1757082114751,0.38150685,111380.0,111360.0,1.65174366]
[1757082114954,0.02070685,111380.0,111370.0,0.54253946]
[1757082115261,0.38150685,111380.0,111370.0,0.54253946]
[1757082115455,0.02070685,111380.0,111370.0,0.99313024]
[1757082115657,0.00919685,111380.0,111370.0,1.24313024]
[1757082115957,0.00919685,111380.0,111370.0,0.88233024]
[1757082116158,0.00919685,111380.0,111370.0,1.73925024]
[1757082116352,0.00919685,111380.0,111370.0,1.1966954]
[1757082116554,0.00919685,111380.0,111370.0,1.64945946]
[1757082116953,0.36999685,111380.0,111370.0,0.79253946]
[1757082117161,0.3608,111400.0,111390.0,0.0897593]
[1757082117363,0.3608,111420.0,111410.0,0.0897432]
[1757082117556,0.38157453,111430.0,111420.0,0.0897351]
[1757082117861,0.3608,111440.0,111430.0,0.0897271]
[1757082118065,0.3608,111450.0,111430.0,1.1946427]
[1757082118356,0.3608,111450.0,111440.0,0.54248306]
[1757082118952,0.3608,111460.0,111450.0,0.0897101]
[1757082119161,0.3608,111460.0,111450.0,1.64639416]
[1757082119456,0.3608,111460.0,111450.0,1.55528406]
[1757082119654,0.3608,111460.0,111450.0,1.64499446]
[1757082119863,0.3608,111470.0,111460.0,0.0897024]
[1757082120162,0.3608,111480.0,111460.0,0.54246646]
[1757082120350,0.3609,111490.0,111480.0,0.0896863]
[1757082120551,0.38187231,111500.0,111480.0,0.0896863]
[1757082120552,0.02117231,111500.0,111490.0,0.0896782]
[1757082120851,0.02107231,111500.0,111490.0,1.64376226]
[1757082121052,0.02107231,111500.0,111490.0,1.73346042]
[1757082121260,0.02107231,111500.0,111490.0,1.98346042]
[1757082121559,0.0001,111510.0,111500.0,0.0896709]
[1757082121753,0.0001,111520.0,111510.0,0.0896628]
[1757082122058,0.3609,111530.0,111510.0,1.64250686]
[1757082122263,0.3609,111530.0,111520.0,0.45276406]
[1757082122462,0.3608,111530.0,111520.0,0.54241916]
[1757082122855,0.0001,111540.0,111530.0,0.0896468]
[1757082123060,0.3608,111550.0,111540.0,0.0896388]
[1757082123061,0.3609,111550.0,111540.0,0.0896388]
[1757082123260,0.3608,111550.0,111540.0,0.54240286]
[1757082123459,0.3608,111550.0,111540.0,2.04240286]
[1757082123765,0.3608,111550.0,111540.0,1.95276406]
[1757082124258,0.3609,111560.0,111540.0,3.2112758]
[1757082124461,0.3609,111560.0,111550.0,0.45276406]
[1757082124658,0.3608,111560.0,111550.0,0.45276406]
[1757082124967,0.3608,111560.0,111550.0,1.54888406]
[1757082125153,0.6463,111560.0,111550.0,1.09596]
[1757082125556,0.3608,111560.0,111550.0,1.54872406]
[1757082125859,1.09906406,111560.0,111540.0,1.09524]
[1757082126058,1.09906406,111560.0,111510.0,0.0001]
[1757082126059,0.0355,111540.0,111520.0,0.07269707]
[1757082126256,0.3964,111540.0,111530.0,1.09528]
[1757082126459,0.7571,111540.0,111530.0,2.59528]
[1757082126656,1.0071,111540.0,111530.0,1.5]
[1757082126856,1.0071,111540.0,111530.0,1.0954]
[1757082127463,0.7571,111540.0,111530.0,1.0954]
[1757082127971,0.7571,111540.0,111530.0,1.09352]
[1757082128257,1.0071,111540.0,111530.0,1.09332]
[1757082128459,1.45986406,111540.0,111510.0,0.07000679]
[1757082128762,0.7216,111520.0,111510.0,0.45276406]
[1757082128960,0.7216,111520.0,111510.0,1.54540406]
[1757082129165,0.7216,111520.0,111510.0,1.09264]
[1757082129366,0.7571,111520.0,111510.0,1.0922]
[1757082129564,0.0355,111500.0,111490.0,1.5]
[1757082129758,0.7216,111500.0,111490.0,3.11633742]
[1757082130365,0.3609,111510.0,111500.0,0.0896701]
[1757082130570,0.3609,111520.0,111510.0,0.0896621]
[1757082130757,0.3608,111520.0,111510.0,1.54320406]
[1757082130957,0.3608,111520.0,111510.0,1.09064]
[1757082130958,0.3963,111520.0,111510.0,1.09064]
[1757082131167,0.6463,111520.0,111510.0,1.09032]
[1757082131360,0.6463,111520.0,111490.0,1.57229336]
[1757082131669,0.3963,111500.0,111490.0,0.07229336]
[1757082131866,0.3963,111500.0,111490.0,1.0908]
[1757082132059,0.6463,111500.0,111490.0,1.0908]
[1757082132260,0.3608,111500.0,111490.0,1.63324246]
[1757082132465,0.3609,111510.0,111490.0,1.54356406]
[1757082132665,0.3608,111500.0,111490.0,1.1615868]
[1757082132865,0.3608,111500.0,111490.0,0.52355086]
[1757082133068,0.3608,111500.0,111490.0,1.1602868]
[1757082133680,1.09906406,111500.0,111490.0,0.0001]
[1757082133865,0.0355,111460.0,111450.0,0.0001]
[1757082134071,0.0355,111460.0,111450.0,0.3313792]
[1757082134270,0.0355,111460.0,111440.0,0.68312]
[1757082134566,0.7216,111450.0,111430.0,0.47104837]
[1757082134776,0.3608,111440.0,111430.0,0.01828431]
[1757082135073,0.3608,111440.0,111430.0,1.13400431]
[1757082135269,0.3608,111440.0,111430.0,1.22373071]
[1757082135466,0.3608,111440.0,111430.0,1.92649477]
[1757082135767,0.3607,111440.0,111430.0,1.92649477]
[1757082135963,0.3608,111460.0,111450.0,0.0897103]
[1757082136159,0.3608,111460.0,111450.0,1.72901487]
[1757082136366,0.3608,111470.0,111460.0,0.0897022]
[1757082136565,0.3608,111480.0,111470.0,0.0896942]
[1757082136763,0.3608,111480.0,111470.0,1.56452406]
[1757082136966,0.3609,111490.0,111470.0,1.56452406]
[1757082137169,0.3608,111480.0,111470.0,1.11176]
[1757082137566,0.3608,111480.0,111470.0,1.112]
[1757082137776,0.3608,111480.0,111470.0,0.45276406]
[1757082137978,0.3608,111480.0,111470.0,1.56904406]
[1757082138165,0.3608,111480.0,111470.0,0.54693816]
[1757082138472,0.3608,111480.0,111470.0,1.65821816]
[1757082138672,0.3608,111480.0,111470.0,1.2054541]
[1757082138974,0.3608,111480.0,111470.0,1.90821816]
[1757082139172,0.3608,111480.0,111470.0,1.11436]
[1757082139473,1.09746406,111480.0,111470.0,0.00448]
[1757082139667,0.6447,111480.0,111470.0,0.00448]
[1757082140266,0.3947,111480.0,111470.0,0.00448]
[1757082140662,1.09746406,111480.0,111470.0,0.00448]
[1757082141471,0.6447,111480.0,111470.0,0.00448]
[1757082141874,1.09746406,111480.0,111470.0,0.00448]
[1757082142172,0.6447,111480.0,111470.0,0.00448]
[1757082142679,0.6447,111480.0,111450.0,4e-05]
[1757082142680,1.09746406,111480.0,111450.0,4e-05]
[1757082142976,1.20826406,111460.0,111450.0,4e-05]
[1757082143163,1.20826406,111460.0,111440.0,1.11184]
[1757082143164,1.20826406,111460.0,111410.0,0.0001]
[1757082143366,0.7555,111420.0,111400.0,0.1]
[1757082143568,0.3608,111410.0,111390.0,0.10704]
[1757082143870,0.35632,111400.0,111390.0,1.60704]
[1757082144270,0.3608,111410.0,111390.0,2.65256]
[1757082144469,0.3608,111420.0,111400.0,0.70276406]
[1757082144668,0.3608,111410.0,111400.0,0.45276406]
[1757082144869,0.3608,111410.0,111400.0,0.70276406]
[1757082145067,0.3608,111410.0,111390.0,2.72440125]
[1757082145372,0.3608,111400.0,111390.0,3.17716531]
[1757082145677,0.3608,111400.0,111390.0,2.97440125]
[1757082145872,0.3608,111400.0,111390.0,2.72696125]
[1757082146075,0.3608,111400.0,111390.0,1.82184125]
[1757082146276,0.3608,111400.0,111390.0,3.43000531]
[1757082146670,0.3608,111400.0,111390.0,3.06699785]
[1757082146878,0.3608,111400.0,111390.0,3.51976191]
[1757082147172,0.3608,111410.0,111400.0,0.0897513]
[1757082147379,0.3608,111410.0,111400.0,0.54251536]
[1757082147677,0.3608,111410.0,111400.0,1.60752406]
[1757082148580,0.3608,111410.0,111400.0,0.54251536]
[1757082148775,0.3608,111410.0,111400.0,0.45276406]
[1757082148978,0.3608,111410.0,111400.0,1.60496406]
[1757082149484,0.3608,111410.0,111390.0,2.02460531]
[1757082149776,0.3608,111400.0,111390.0,2.11436471]
[1757082149975,0.3608,111400.0,111390.0,3.17860531]
[1757082150374,0.3608,111400.0,111390.0,3.26836471]
[1757082150577,0.3608,111400.0,111390.0,3.27196471]
[1757082150777,0.3608,111420.0,111400.0,0.0897506]
[1757082150983,0.3608,111430.0,111420.0,0.0897352]
[1757082151184,0.3608,111430.0,111420.0,1.15644]
[1757082151475,0.3608,111430.0,111400.0,0.45276406]
[1757082151681,0.3608,111410.0,111390.0,1.57184125]
[1757082151880,0.3608,111400.0,111390.0,1.57184125]
[1757082152179,0.3947,111400.0,111390.0,1.22724125]
[1757082152678,0.3947,111400.0,111390.0,2.72724125]
[1757082152881,0.3608,111400.0,111390.0,0.07194125]
[1757082153080,0.3608,111400.0,111390.0,1.22678125]
[1757082153276,0.6447,111400.0,111390.0,0.0001]
[1757082153485,1.09746406,111400.0,111390.0,0.0001]
[1757082153669,0.6447,111400.0,111390.0,1.15382]
[1757082154070,0.3609,111410.0,111400.0,0.0897502]
[1757082154276,0.3608,111410.0,111400.0,0.0898502]
[1757082154576,0.3608,111410.0,111400.0,0.79261426]
[1757082154883,0.0001,111420.0,111410.0,0.0897421]
[1757082155084,0.3609,111430.0,111420.0,0.0897341]
[1757082155383,0.3608,111430.0,111420.0,0.54259816]
[1757082155583,0.3608,111430.0,111420.0,0.79655282]
[1757082155785,0.3609,111440.0,111430.0,0.0897263]
[1757082156084,0.3608,111440.0,111430.0,1.69822502]
[1757082156281,1.0055,111440.0,111430.0,0.0001]
[1757082156485,1.46221872,111440.0,111430.0,0.42134]
[1757082156687,1.0055,111440.0,111430.0,0.42134]
[1757082157390,0.7555,111440.0,111430.0,0.87805872]
[1757082157880,1.0055,111440.0,111430.0,0.0001]
[1757082158080,0.0339,111400.0,111390.0,0.07075731]
[1757082158288,0.7555,111400.0,111380.0,1.73432]
[1757082158584,0.3608,111390.0,111380.0,1.73432]
[1757082158780,0.3608,111390.0,111380.0,3.34007872]
[1757082158980,0.3608,111390.0,111380.0,2.88336]
[1757082159181,0.3608,111390.0,111380.0,3.34007872]
[1757082159379,0.3608,111390.0,111380.0,1.73432]
[1757082160087,0.3608,111390.0,111380.0,2.88448]
[1757082160282,1.06751872,111390.0,111370.0,0.0180239]
[1757082160475,0.3947,111380.0,111370.0,0.0180239]
[1757082160676,0.3947,111380.0,111370.0,1.1683839]
[1757082160677,0.85141872,111380.0,111370.0,1.1683839]
[1757082160877,0.3947,111380.0,111370.0,0.0180239]
[1757082161179,0.7555,111380.0,111370.0,1.1677039]
[1757082161379,1.46221872,111380.0,111370.0,0.0180239]
[1757082161586,1.0055,111380.0,111370.0,0.0180239]
[1757082161886,1.0055,111380.0,111370.0,1.1666639]
[1757082162086,1.0055,111380.0,111370.0,0.0180239]
[1757082162883,0.7555,111380.0,111370.0,1.1644639]
[1757082163288,0.7216,111380.0,111370.0,1.1644639]
[1757082163485,0.7216,111380.0,111370.0,1.87118262]
[1757082163789,0.7555,111380.0,111370.0,1.62118262]
[1757082164083,0.7555,111380.0,111370.0,1.1644639]
[1757082164291,1.46221872,111380.0,111370.0,1.1639439]
[1757082164487,1.0055,111380.0,111370.0,1.1639439]
[1757082164882,1.0055,111380.0,111370.0,1.1665439]
[1757082165392,0.75565,111380.0,111370.0,1.62326262]
[1757082165690,0.75565,111380.0,111370.0,1.1661839]
[1757082166390,0.75565,111380.0,111370.0,1.14816]
[1757082166685,1.46236872,111380.0,111360.0,0.00448]
[1757082166889,0.3608,111370.0,111340.0,4e-05]
[1757082167187,0.7216,111350.0,111340.0,4e-05]
[1757082167783,1.17831872,111350.0,111340.0,4e-05]
[1757082168087,0.03405,111340.0,111300.0,0.45685872]
[1757082168285,0.7216,111310.0,111300.0,0.07134294]
[1757082168590,0.7216,111310.0,111300.0,1.22390294]
[1757082169085,0.7216,111310.0,111300.0,0.07134294]
[1757082169684,0.7216,111310.0,111300.0,1.93234166]
[1757082169991,0.7216,111310.0,111300.0,1.15432]
[1757082170398,0.7216,111310.0,111300.0,1.1538]
[1757082170686,0.9716,111310.0,111300.0,4e-05]
[1757082170991,1.42831872,111310.0,111300.0,4e-05]
[1757082171294,0.9716,111310.0,111300.0,4e-05]
[1757082171990,1.42831872,111310.0,111300.0,4e-05]
[1757082172191,0.9716,111310.0,111300.0,4e-05]
[1757082172688,1.42831872,111310.0,111280.0,0.01816497]
[1757082172885,0.03405,111260.0,111250.0,0.20581535]
[1757082173092,0.39485,111260.0,111250.0,0.20571535]
[1757082173290,0.85156872,111260.0,111250.0,0.21956962]
[1757082173588,1.10156872,111260.0,111250.0,0.21956962]
[1757082173780,0.64485,111260.0,111250.0,0.11506535]
[1757082173981,0.39485,111260.0,111250.0,0.09693535]
[1757082174286,0.39485,111260.0,111250.0,0.11076213]
[1757082174496,0.3608,111260.0,111250.0,0.70675872]
[1757082174884,0.3608,111260.0,111250.0,0.26396631]
[1757082175084,0.3608,111260.0,111250.0,1.61960503]
[1757082175391,0.3608,111260.0,111250.0,1.95947653]
[1757082175586,0.3608,111260.0,111250.0,1.50275781]
[1757082175786,0.3608,111260.0,111250.0,1.4888315]
[1757082175986,0.3608,111260.0,111250.0,1.39896]
[1757082176188,0.3608,111260.0,111250.0,4e-05]
[1757082176398,0.3608,111260.0,111250.0,1.14756]
[1757082176889,0.3608,111260.0,111250.0,4e-05]
[1757082177195,0.3608,111260.0,111250.0,0.00014]
[1757082177394,0.3608,111260.0,111250.0,1.3068915]
[1757082177795,0.3608,111260.0,111250.0,1.75110667]
[1757082178186,0.3609,111270.0,111260.0,0.1174334]
[1757082178387,0.3608,111270.0,111260.0,0.1175334]
[1757082178589,0.3608,111270.0,111260.0,0.3675334]
[1757082179392,0.3608,111270.0,111260.0,1.5125334]
[1757082179693,0.3609,111280.0,111270.0,0.0898553]
[1757082179995,0.3608,111280.0,111270.0,0.78417047]
[1757082180189,0.3608,111300.0,111280.0,0.0898473]
[1757082180491,0.03405,111340.0,111280.0,0.0898473]
[1757082180492,0.3608,111330.0,111320.0,0.089815]
[1757082180694,0.3608,111330.0,111320.0,3.08693517]
[1757082180892,0.3608,111400.0,111340.0,0.5387873]
[1757082181094,0.3608,111420.0,111390.0,0.44421517]
[1757082181297,0.39485,111440.0,111410.0,0.80501517]
[1757082181597,0.4154915,111460.0,111430.0,0.3608]
[1757082181896,0.0546915,111460.0,111440.0,0.3608]
[1757082182097,0.0206415,111460.0,111450.0,0.4505103]
[1757082182288,0.0206415,111460.0,111450.0,0.3608]
[1757082182493,0.0206415,111460.0,111450.0,0.80501517]
[1757082182693,0.0206415,111460.0,111450.0,0.3608]
[1757082182893,0.0206415,111460.0,111450.0,0.7005103]
[1757082183200,0.0206415,111460.0,111450.0,1.7742]
[1757082183397,0.02065454,111480.0,111460.0,0.0897022]
[1757082183598,0.02065454,111480.0,111470.0,0.7216]
[1757082183904,0.0001,111490.0,111470.0,2.2738542]
[1757082184094,0.0001,111490.0,111480.0,0.3608]
[1757082184297,0.1238234,111500.0,111480.0,0.3608]
[1757082184591,0.03415,111500.0,111480.0,1.97021517]
[1757082184791,0.03415,111500.0,111490.0,0.3608]
[1757082184792,0.0001,111500.0,111490.0,0.3608]
[1757082184997,0.0897637,111510.0,111490.0,1.29776]
[1757082185197,0.089762,111510.0,111500.0,0.3608]
[1757082185394,0.08967,111500.0,111490.0,1.52624]
[1757082185592,0.0896781,111490.0,111480.0,1.16468]
[1757082185898,0.3396781,111490.0,111480.0,0.3608]
[1757082186690,0.3396781,111490.0,111470.0,0.3608]
[1757082186691,0.1237361,111480.0,111470.0,0.3608]
[1757082186900,0.0896861,111480.0,111470.0,0.3608]
[1757082187094,0.3737361,111480.0,111470.0,0.3608]
[1757082187603,0.1237361,111480.0,111470.0,0.3608]
[1757082187801,0.3737361,111480.0,111470.0,0.3608]
[1757082188299,0.1237521,111460.0,111450.0,0.3608]
[1757082188701,0.3737521,111460.0,111450.0,0.3608]
[1757082188906,0.0897102,111450.0,111440.0,0.43230043]
[1757082189092,0.1237535,111460.0,111440.0,0.43230043]
[1757082189299,0.1237535,111460.0,111450.0,0.3608]
[1757082189995,0.1237535,111460.0,111440.0,0.07150043]
[1757082189996,0.0897102,111450.0,111440.0,0.07150043]
[1757082190195,0.1237843,111420.0,111410.0,0.3608]
[1757082190404,0.5384614,111410.0,111380.0,0.37919018]
[1757082190593,0.0897585,111390.0,111380.0,0.37919018]
[1757082190797,0.0897585,111390.0,111380.0,0.4506645]
[1757082192199,0.3397585,111390.0,111380.0,0.07147432]
[1757082192504,0.1238166,111380.0,111370.0,0.3608]
[1757082193008,0.0897746,111370.0,111360.0,0.3608]
[1757082193207,0.0897746,111370.0,111360.0,0.6108]
[1757082193405,0.3608,111390.0,111360.0,0.43284736]
[1757082193603,0.03405,111400.0,111370.0,0.80501517]
[1757082193814,0.03405,111400.0,111380.0,1.16436]
[1757082194020,0.03405,111400.0,111380.0,1.52516]
[1757082194317,0.39485,111420.0,111380.0,1.52516]
[1757082194517,0.39485,111420.0,111390.0,0.3608]
[1757082194717,0.39485,111420.0,111380.0,1.52516]
[1757082194918,0.3608,111410.0,111390.0,0.3608]
[1757082195119,0.03405,111400.0,111390.0,0.00448]
[1757082195321,0.39485,111420.0,111390.0,0.36528]
[1757082196217,0.03405,111420.0,111390.0,1.52584]
[1757082196418,0.39485,111420.0,111390.0,0.36528]
[1757082196724,0.03405,111420.0,111400.0,0.3608]
[1757082197215,0.39485,111420.0,111400.0,0.3608]
[1757082198214,0.03435,111400.0,111390.0,0.36528]
[1757082198523,0.03435,111380.0,111360.0,0.07204736]
[1757082198721,0.39515,111380.0,111350.0,0.37917228]
[1757082198922,0.39525,111380.0,111360.0,0.0001]
[1757082199116,0.3608,111370.0,111360.0,0.0001]
[1757082199317,0.03435,111340.0,111330.0,0.3608]
[1757082200124,0.39515,111360.0,111330.0,0.3608]
[1757082200819,0.03435,111360.0,111330.0,0.3608]
[1757082201024,0.39515,111360.0,111330.0,0.3608]
[1757082201422,0.03435,111340.0,111320.0,0.3608]
[1757082201618,0.39515,111340.0,111310.0,2.09564]
[1757082201826,0.39515,111340.0,111310.0,0.3608]
[1757082202120,0.03435,111340.0,111320.0,0.3608]
[1757082202325,0.83936517,111360.0,111330.0,0.3608]
[1757082202326,0.03435,111360.0,111330.0,0.3608]
[1757082202526,0.3608,111350.0,111330.0,0.3608]
[1757082202819,0.02122282,111370.0,111340.0,0.4505976]
[1757082203028,0.02122282,111370.0,111360.0,0.3608]